Workbook

Sheet ORIENTACAO
B1: PL-001 | Versão: 04 | Data: 11/02/2021
B3: ORIENTAÇÕES GERAIS
B8: Esta planilha eletônica possui o objetivo de auxiliar os estabelecimentos que realizam atividades ecônomicas sujeitas a vigilância sanitária a simularem a taxa a ser paga pelos serviços prestados ou postos a disposição pela Vigilância Sanitária Estadual.
B9: Ressalta-se que a utilização dessa planilha é somente de caráter consultivo/informativo.
B11: i ATENÇÃO: O pagamento da taxa deve ser realizado por meio de DUA eletrônico emitido pelo site da Secretaria de Estado da Fazenda.
B13: Siga o passo a passo a seguir:
C15: PASSO 01: CONSULTAR GRUPO | I15: PASSO 02: SIMULAR TAXAS | O15: PASSO 03: EMITIR DUA ELETRÔNICO
B31: Dúvidas ou informações:
B32: * | C32: visa@saude.es.gov.br | E32: ) | F32: (27) 3636-8227

Sheet CLASSIFICACAO_GRUPO
B1: =ORIENTACAO!B1 -> PL-001 | Versão: 04 | Data: 11/02/2021
B3: CONSULTA DE CLASSIFICAÇÃO DE ESTABELECIMENTO EM GRUPO I, II OU III
B4: Portaria Estadual SESA 107-R de 20/12/2018
B6: 1. Selecione todas as atividades econômicas sujeitas à Vigilância Sanitária desenvolvidas pelo estabelecimento
B7: 2. Clique em "VER CLASSIFICAÇÃO" | E7: TOTAL DE ATIVIDADES ECONÔMICAS SELECIONADAS: | F7: =J247 -> 1
C8: SUBCLASSE | D8: ATIVIDADE ECONÔMICA | H8: Grupo Lei 7001/01 | I8: SELEÇÃO | J8: CÁLCULO
C9: 0892-4/03 | D9: Refino e outros tratamentos do sal | H9: 2 | I9: FALSE | J9: =IF(I9=TRUE,H9,0) -> 0 | K9: FALSE
C10: 1031-7/00 | D10: Fabricação de conservas de frutas | H10: 2 | I10: FALSE | J10: =IF(I10=TRUE,H10,0) -> 0 | K10: FALSE
C11: 1032-5/01 | D11: Fabricação de conservas de palmito | H11: 2 | I11: FALSE | J11: 0 | K11: FALSE
C12: 1032-5/99 | D12: Fabricação de conservas de legumes e outros vegetais, exceto palmito | H12: 2 | I12: FALSE | J12: 0 | K12: FALSE
C13: 1041-4/00 | D13: Fabricação de óleos vegetais em bruto, exceto óleo de milho | H13: 2 | I13: FALSE | J13: 0 | K13: FALSE
C14: 1042-2/00 | D14: Fabricação de óleos vegetais refinados, exceto óleo de milho | H14: 2 | I14: FALSE | J14: 0 | K14: FALSE
C15: 1043-1/00 | D15: Fabricação de margarina e outras gorduras vegetais e de óleos não-comestíveis de animais | H15: 2 | I15: FALSE | J15: 0 | K15: FALSE
C16: 1053-8/00 | D16: Fabricação de sorvetes e outros gelados comestíveis | H16: 2 | I16: FALSE | J16: 0 | K16: FALSE
C17: 1061-9/01 | D17: Beneficiamento de arroz | H17: 2 | I17: FALSE | J17: 0 | K17: FALSE
C18: 1061-9/02 | D18: Fabricação de produtos do arroz | H18: 2 | I18: FALSE | J18: 0 | K18: FALSE
C19: 1062-7/00 | D19: Moagem de trigo e fabricação de derivados | H19: 2 | I19: FALSE | J19: 0 | K19: FALSE
C20: 1063-5/00 | D20: Fabricação de farinha de mandioca e derivados | H20: 2 | I20: FALSE | J20: 0 | K20: FALSE
C21: 1064-3/00 | D21: Fabricação de farinha de milho e derivados, exceto óleos de milho | H21: 2 | I21: FALSE | J21: 0 | K21: FALSE
C22: 1065-1/01 | D22: Fabricação de amidos e féculas de vegetais | H22: 2 | I22: FALSE | J22: 0 | K22: FALSE
C23: 1065-1/02 | D23: Fabricação de óleo de milho em bruto | H23: 2 | I23: FALSE | J23: 0 | K23: FALSE
C24: 1065-1/03 | D24: Fabricação de óleo de milho refinado | H24: 2 | I24: FALSE | J24: 0 | K24: FALSE
C25: 1069-4/00 | D25: Moagem e fabricação de produtos de origem vegetal não especificados anteriormente | H25: 2 | I25: FALSE | J25: 0 | K25: FALSE
C26: 1071-6/00 | D26: Fabricação de açúcar em bruto | H26: 2 | I26: FALSE | J26: 0 | K26: FALSE
C27: 1072-4/01 | D27: Fabricação de açúcar de cana refinado | H27: 2 | I27: FALSE | J27: 0 | K27: FALSE
C28: 1072-4/02 | D28: Fabricação de açúcar de cereais (dextrose) e de beterraba | H28: 2 | I28: FALSE | J28: 0 | K28: FALSE
C29: 1081-3/01 | D29: Beneficiamento de café | H29: 2 | I29: FALSE | J29: 0 | K29: FALSE
C30: 1081-3/02 | D30: Torrefação e moagem de café | H30: 2 | I30: FALSE | J30: 0 | K30: FALSE
C31: 1082-1/00 | D31: Fabricação de produtos à base de café | H31: 2 | I31: FALSE | J31: 0 | K31: FALSE
C32: 1091-1/01 | D32: Fabricação de produtos de panificação Industrial | H32: 2 | I32: FALSE | J32: 0 | K32: FALSE
C33: 1091-1/02 | D33: Fabricação de produtos de padaria e confeitaria com predominância de produção própria | H33: 1 | I33: FALSE | J33: 0 | K33: FALSE
C34: 1092-9/00 | D34: Fabricação de biscoitos e bolachas | H34: 2 | I34: FALSE | J34: 0 | K34: FALSE
C35: 1093-7/01 | D35: Fabricação de produtos derivados do cacau e de chocolates | H35: 2 | I35: FALSE | J35: 0 | K35: FALSE
C36: 1093-7/02 | D36: Fabricação de frutas cristalizadas, balas e semelhantes | H36: 2 | I36: FALSE | J36: 0 | K36: FALSE
C37: 1094-5/00 | D37: Fabricação de massas alimentícias | H37: 2 | I37: FALSE | J37: 0 | K37: FALSE
C38: 1095-3/00 | D38: Fabricação de especiarias, molhos, temperos e condimentos | H38: 2 | I38: FALSE | J38: 0 | K38: FALSE
C39: 1096-1/00 | D39: Fabricação de alimentos e pratos prontos | H39: 2 | I39: FALSE | J39: 0 | K39: FALSE
C40: 1099-6/02 | D40: Fabricação de pós alimentícios | H40: 2 | I40: FALSE | J40: 0 | K40: FALSE
C41: 1099-6/03 | D41: Fabricação de fermentos e leveduras | H41: 3 | I41: FALSE | J41: 0 | K41: FALSE
C42: 1099-6/04 | D42: Fabricação de gelo comum | H42: 2 | I42: FALSE | J42: 0 | K42: FALSE
C43: 1099-6/05 | D43: Fabricação de produtos para infusão (chá, mate, etc.) | H43: 2 | I43: FALSE | J43: 0 | K43: FALSE
C44: 1099-6/06 | D44: Fabricação de adoçantes naturais e artificiais | H44: 2 | I44: FALSE | J44: 0 | K44: FALSE
C45: 1099-6/07 | D45: Fabricação de alimentos dietéticos e complementos alimentares | H45: 2 | I45: TRUE | J45: 2 | K45: FALSE
C46: 1099-6/99 | D46: Fabricação de outros produtos alimentícios não especificados anteriormente | H46: 2 | I46: FALSE | J46: 0 | K46: FALSE
C47: 1121-6/00 | D47: Fabricação de águas envasadas | H47: 2 | I47: FALSE | J47: 0 | K47: FALSE
C48: 1122-4/03 | D48: Fabricação de refrescos, xaropes e pós para refrescos, exceto refrescos de frutas | H48: 2 | I48: FALSE | J48: 0 | K48: FALSE
C49: 1122-4/04 | D49: Fabricação de bebidas isotônicas | H49: 3 | I49: FALSE | J49: 0 | K49: FALSE
C50: 1122-4/99 | D50: Fabricação de outras bebidas não-alcoólicas não especificadas anteriormente | H50: 2 | I50: FALSE | J50: 0 | K50: FALSE
C51: 1731-1/00 | D51: Fabricação de embalagens de papel | H51: 2 | I51: FALSE | J51: 0 | K51: FALSE
C52: 1732-0/00 | D52: Fabricação de embalagens de cartolina e papel-cartão | H52: 2 | I52: FALSE | J52: 0 | K52: FALSE
C53: 1733-8/00 | D53: Fabricação de chapas e de embalagens de papelão ondulado | H53: 2 | I53: FALSE | J53: 0 | K53: FALSE
C54: 1742-7/01 | D54: Fabricação de fraldas descartáveis | H54: 2 | I54: FALSE | J54: 0 | K54: FALSE
C55: 1742-7/02 | D55: Fabricação de absorventes higiênicos | H55: 2 | I55: FALSE | J55: 0 | K55: FALSE
C56: 2014-2/00 | D56: Fabricação de gases industriais | H56: 3 | I56: FALSE | J56: 0 | K56: FALSE
C57: 2019-3/99 | D57: Fabricação de outros produtos químicos inorgânicos não especificados anteriormente | H57: 3 | I57: FALSE | J57: 0 | K57: FALSE
C58: 2029-1/00 | D58: Fabricação de produtos químicos orgânicos não especificados anteriormente | H58: 3 | I58: FALSE | J58: 0 | K58: FALSE
C59: 2052-5/00 | D59: Fabricação de desinfestantes domissanitários | H59: 2 | I59: FALSE | J59: 0 | K59: FALSE
C60: 2061-4/00 | D60: Fabricação de sabões e detergentes sintéticos | H60: 2 | I60: FALSE | J60: 0 | K60: FALSE
C61: 2062-2/00 | D61: Fabricação de produtos de limpeza e polimento | H61: 2 | I61: FALSE | J61: 0 | K61: FALSE
C62: 2063-1/00 | D62: Fabricação de cosméticos, produtos de perfumaria e de higiene pessoal | H62: 2 | I62: FALSE | J62: 0 | K62: FALSE
C63: 2071-1/00 | D63: Fabricação de tintas, vernizes, esmaltes e lacas | H63: 2 | I63: FALSE | J63: 0 | K63: FALSE
C64: 2091-6/00 | D64: Fabricação de adesivos e selantes | H64: 2 | I64: FALSE | J64: 0 | K64: FALSE
C65: 2093-2/00 | D65: Fabricação de aditivos de uso industrial | H65: 3 | I65: FALSE | J65: 0 | K65: FALSE
C66: 2110-6/00 | D66: Fabricação de produtos farmoquímicos | H66: 3 | I66: FALSE | J66: 0 | K66: FALSE
C67: 2121-1/01 | D67: Fabricação de medicamentos alopáticos para uso humano | H67: 3 | I67: FALSE | J67: 0 | K67: FALSE
C68: 2121-1/02 | D68: Fabricação de medicamentos homeopáticos para uso humano | H68: 3 | I68: FALSE | J68: 0 | K68: FALSE
C69: 2121-1/03 | D69: Fabricação de medicamentos fitoterápicos para uso humano | H69: 3 | I69: FALSE | J69: 0 | K69: FALSE
C70: 2123-8/00 | D70: Fabricação de preparações farmacêuticas | H70: 3 | I70: FALSE | J70: 0 | K70: FALSE
C71: 2219-6/00 | D71: Fabricação de artefatos de borracha não especificados anteriormente | H71: 2 | I71: FALSE | J71: 0 | K71: FALSE
C72: 2222-6/00 | D72: Fabricação de embalagens de material plástico | H72: 2 | I72: FALSE | J72: 0 | K72: FALSE
C73: 2312-5/00 | D73: Fabricação de embalagens de vidro | H73: 2 | I73: FALSE | J73: 0 | K73: FALSE
C74: 2341-9/00 | D74: Fabricação de produtos cerâmicos refratários | H74: 2 | I74: FALSE | J74: =IF(I74=TRUE,H74,0) -> 0 | K74: FALSE
C75: 2349-4/99 | D75: Fabricação de produtos cerâmicos não-refratários não especificados anteriormente | H75: 2 | I75: FALSE | J75: 0 | K75: FALSE
C76: 2591-8/00 | D76: Fabricação de embalagens metálicas | H76: 2 | I76: FALSE | J76: 0 | K76: FALSE
C77: 2660-4/00 | D77: Fabricação de aparelhos eletromédicos e eletroterapêuticos e equipamentos de irradiação | H77: 2 | I77: FALSE | J77: 0 | K77: FALSE
C78: 2829-1/99 | D78: Fabricação de outras máquinas e equipamentos de uso geral não especificados anteriormente, peças e acessórios | H78: 2 | I78: FALSE | J78: 0 | K78: FALSE
C79: 3092-0/00 | D79: Fabricação de bicicletas e triciclos não-motorizados, peças e acessórios | H79: 2 | I79: FALSE | J79: 0 | K79: FALSE
C80: 3250-7/01 | D80: Fabricação de instrumentos não-eletrônicos e utensílios para uso médico, cirúrgico, odontológico e de laboratório | H80: 2 | I80: FALSE | J80: 0 | K80: FALSE
C81: 3250-7/02 | D81: Fabricação de mobiliário para uso médico, cirúrgico, odontológico e de laboratório | H81: 2 | I81: FALSE | J81: 0 | K81: FALSE
C82: 3250-7/03 | D82: Fabricação de aparelhos e utensílios para correção de defeitos físicos e aparelhos ortopédicos em geral sob encomenda | H82: 2 | I82: FALSE | J82: 0 | K82: FALSE
C83: 3250-7/04 | D83: Fabricação de aparelhos e utensílios para correção de defeitos físicos e aparelhos ortopédicos em geral, exceto sob encomenda | H83: 2 | I83: FALSE | J83: 0 | K83: FALSE
C84: 3250-7/05 | D84: Fabricação de materiais para medicina e odontologia | H84: 2 | I84: FALSE | J84: 0 | K84: FALSE
C85: 3250-7/06 | D85: Serviços de prótese dentária | H85: 1 | I85: FALSE | J85: 0 | K85: FALSE
C86: 3250-7/07 | D86: Fabricação de artigos ópticos | H86: 2 | I86: FALSE | J86: 0 | K86: FALSE
C87: 3250-7/09 | D87: Serviço de laboratório óptico | H87: 1 | I87: FALSE | J87: 0 | K87: FALSE
C88: 3291-4/00 | D88: Fabricação de escovas, pincéis e vassouras | H88: 2 | I88: FALSE | J88: 0 | K88: FALSE
C89: 3292-2/02 | D89: Fabricação de equipamentos e acessórios para segurança pessoal e profissional | H89: 2 | I89: FALSE | J89: 0 | K89: FALSE
C90: 3299-0/06 | D90: Fabricação de velas, inclusive decorativas | H90: 2 | I90: FALSE | J90: 0 | K90: FALSE
C91: 3600-6/02 | D91: Distribuição de água por caminhões | H91: 1 | I91: FALSE | J91: 0 | K91: FALSE
C92: 4621-4/00 | D92: Comércio atacadista de café em grão | H92: 1 | I92: FALSE | J92: 0 | K92: FALSE
C93: 4622-2/00 | D93: Comércio atacadista de soja | H93: 1 | I93: FALSE | J93: 0 | K93: FALSE
C94: 4623-1/05 | D94: Comércio atacadista de cacau | H94: 1 | I94: FALSE | J94: 0 | K94: FALSE
C95: 4631-1/00 | D95: Comércio atacadista de leite e laticínios | H95: 1 | I95: FALSE | J95: 0 | K95: FALSE
C96: 4632-0/01 | D96: Comércio atacadista de cereais e leguminosas beneficiados | H96: 1 | I96: FALSE | J96: 0 | K96: FALSE
C97: 4632-0/02 | D97: Comércio atacadista de farinhas, amidos e féculas | H97: 1 | I97: FALSE | J97: 0 | K97: FALSE
C98: 4632-0/03 | D98: Comércio atacadista de cereais e leguminosas beneficiados, farinhas, amidos e féculas, com atividade de fracionamento e acondicionamento associada | H98: 2 | I98: FALSE | J98: 0 | K98: FALSE
C99: 4633-8/01 | D99: Comércio atacadista de frutas, verduras, raízes, tubérculos, hortaliças e legumes frescos | H99: 1 | I99: FALSE | J99: 0 | K99: FALSE
C100: 4633-8/02 | D100: Comércio atacadista de aves vivas e ovos | H100: 1 | I100: FALSE | J100: 0 | K100: FALSE
C101: 4634-6/01 | D101: Comércio atacadista de carnes bovinas e suínas e derivados | H101: 1 | I101: FALSE | J101: 0 | K101: FALSE
C102: 4634-6/02 | D102: Comércio atacadista de aves abatidas e derivados | H102: 1 | I102: FALSE | J102: 0 | K102: FALSE
C103: 4634-6/03 | D103: Comércio atacadista de pescados e frutos do mar | H103: 1 | I103: FALSE | J103: 0 | K103: FALSE
C104: 4634-6/99 | D104: Comércio atacadista de carnes e derivados de outros animais | H104: 1 | I104: FALSE | J104: 0 | K104: FALSE
C105: 4635-4/01 | D105: Comércio atacadista de água mineral | H105: 1 | I105: FALSE | J105: 0 | K105: FALSE
C106: 4635-4/02 | D106: Comércio atacadista de cerveja, chope e refrigerante | H106: 1 | I106: FALSE | J106: 0 | K106: FALSE
C107: 4635-4/03 | D107: Comércio atacadista de bebidas com atividade de fracionamento e acondicionamento associada | H107: 2 | I107: FALSE | J107: 0 | K107: FALSE
C108: 4635-4/99 | D108: Comércio atacadista de bebidas não especificadas anteriormente | H108: 1 | I108: FALSE | J108: 0 | K108: FALSE
C109: 4637-1/01 | D109: Comércio atacadista de café torrado, moído e solúvel | H109: 1 | I109: FALSE | J109: 0 | K109: FALSE
C110: 4637-1/02 | D110: Comércio atacadista de açúcar | H110: 1 | I110: FALSE | J110: 0 | K110: FALSE
C111: 4637-1/03 | D111: Comércio atacadista de óleos e gorduras | H111: 1 | I111: FALSE | J111: 0 | K111: FALSE
C112: 4637-1/04 | D112: Comércio atacadista de pães, bolos, biscoitos e similares | H112: 1 | I112: FALSE | J112: 0 | K112: FALSE
C113: 4637-1/05 | D113: Comércio atacadista de massas alimentícias | H113: 1 | I113: FALSE | J113: 0 | K113: FALSE
C114: 4637-1/06 | D114: Comércio atacadista de sorvetes | H114: 1 | I114: FALSE | J114: 0 | K114: FALSE
C115: 4637-1/07 | D115: Comércio atacadista de chocolates, confeitos, balas, bombons e semelhantes | H115: 1 | I115: FALSE | J115: 0 | K115: FALSE
C116: 4637-1/99 | D116: Comércio atacadista especializado em outros produtos alimentícios não especificados anteriormente | H116: 1 | I116: FALSE | J116: 0 | K116: FALSE
C117: 4639-7/01 | D117: Comércio atacadista de produtos alimentícios em geral | H117: 1 | I117: FALSE | J117: 0 | K117: FALSE
C118: 4639-7/02 | D118: Comércio atacadista de produtos alimentícios em geral, com atividade de fracionamento e acondicionamento associada | H118: 2 | I118: FALSE | J118: 0 | K118: FALSE
C119: 4644-3/01 | D119: Comércio atacadista de medicamentos e drogas de uso humano | H119: 2 | I119: FALSE | J119: 0 | K119: FALSE
C120: 4645-1/01 | D120: Comércio atacadista de instrumentos e materiais para uso médico, cirúrgico, hospitalar e de laboratórios | H120: 1 | I120: FALSE | J120: 0 | K120: FALSE
C121: 4645-1/02 | D121: Comércio atacadista de próteses e artigos de ortopedia | H121: 1 | I121: FALSE | J121: 0 | K121: FALSE
C122: 4645-1/03 | D122: Comércio atacadista de produtos odontológicos | H122: 1 | I122: FALSE | J122: 0 | K122: FALSE
C123: 4646-0/01 | D123: Comércio atacadista de cosméticos e produtos de perfumaria | H123: 1 | I123: FALSE | J123: 0 | K123: FALSE
C124: 4646-0/02 | D124: Comércio atacadista de produtos de higiene pessoal | H124: 1 | I124: FALSE | J124: 0 | K124: FALSE
C125: 4649-4/08 | D125: Comércio atacadista de produtos de higiene, limpeza e conservação domiciliar | H125: 1 | I125: FALSE | J125: 0 | K125: FALSE
C126: 4649-4/09 | D126: Comércio atacadista de produtos de higiene, limpeza e conservação domiciliar, com atividade de fracionamento e acondicionamento associada | H126: 2 | I126: FALSE | J126: 0 | K126: FALSE
C127: 4664-8/00 | D127: Comércio atacadista de máquinas, aparelhos e equipamentos para uso odonto-médico-hospitalar; partes e peças | H127: 1 | I127: FALSE | J127: 0 | K127: FALSE
C128: 4691-5/00 | D128: Comércio atacadista de mercadorias em geral, com predominância de produtos alimentícios | H128: 1 | I128: FALSE | J128: 0 | K128: FALSE
C129: 4711-3/01 | D129: Comércio varejista de mercadorias em geral, com predominância de produtos alimentícios - hipermercados | H129: 1 | I129: FALSE | J129: 0 | K129: FALSE
C130: 4711-3/02 | D130: Comércio varejista de mercadorias em geral, com predominância de produtos alimentícios - supermercados | H130: 1 | I130: FALSE | J130: 0 | K130: FALSE
C131: 4712-1/00 | D131: Comércio varejista de mercadorias em geral, com predominância de produtos alimentícios - minimercados, mercearias e armazéns | H131: 1 | I131: FALSE | J131: 0 | K131: FALSE
C132: 4721-1/02 | D132: Padaria e confeitaria com predominância de revenda | H132: 1 | I132: FALSE | J132: 0 | K132: FALSE
C133: 4721-1/03 | D133: Comércio varejista de laticínios e frios | H133: 1 | I133: FALSE | J133: 0 | K133: FALSE
C134: 4721-1/04 | D134: Comércio varejista de doces, balas, bombons e semelhantes | H134: 1 | I134: FALSE | J134: 0 | K134: FALSE
C135: 4722-9/01 | D135: Comércio varejista de carnes - açougues | H135: 1 | I135: FALSE | J135: 0 | K135: FALSE
C136: 4722-9/02 | D136: Peixaria | H136: 1 | I136: FALSE | J136: 0 | K136: FALSE
C137: 4723-7/00 | D137: Comércio varejista de bebidas | H137: 1 | I137: FALSE | J137: 0 | K137: FALSE
C138: 4724-5/00 | D138: Comércio varejista de hortifrutigranjeiros | H138: 1 | I138: FALSE | J138: =IF(I138=TRUE,H138,0) -> 0 | K138: FALSE
C139: 4729-6/02 | D139: Comércio varejista de mercadorias em lojas de conveniência | H139: 1 | I139: FALSE | J139: 0 | K139: FALSE
C140: 4729-6/99 | D140: Comércio varejista de produtos alimentícios em geral ou especializado em produtos alimentícios não especificados anteriormente | H140: 1 | I140: FALSE | J140: 0 | K140: FALSE
C141: 4771-7/01 | D141: Comércio varejista de produtos farmacêuticos, sem manipulação de fórmulas | H141: 1 | I141: FALSE | J141: 0 | K141: FALSE
C142: 4771-7/02 | D142: Comércio varejista de produtos farmacêuticos, com manipulação de fórmulas | H142: 2 | I142: FALSE | J142: 0 | K142: FALSE
C143: 4771-7/03 | D143: Comércio varejista de produtos farmacêuticos homeopáticos | H143: 2 | I143: FALSE | J143: 0 | K143: FALSE
C144: 4772-5/00 | D144: Comércio varejista de cosméticos, produtos de perfumaria e de higiene pessoal | H144: 1 | I144: FALSE | J144: 0 | K144: FALSE
C145: 4773-3/00 | D145: Comércio varejista de artigos médicos e ortopédicos | H145: 1 | I145: FALSE | J145: 0 | K145: FALSE
C146: 4774-1/00 | D146: Comércio varejista de artigos de óptica | H146: 1 | I146: FALSE | J146: 0 | K146: FALSE
C147: 4789-0/05 | D147: Comércio varejista de produtos saneantes domissanitários | H147: 1 | I147: FALSE | J147: 0 | K147: FALSE
C148: 4789-0/99 | D148: Comércio varejista de outros produtos não especificados anteriormente | H148: 1 | I148: FALSE | J148: 0 | K148: FALSE
C149: 4930-2/01 | D149: Transporte rodoviário de carga, exceto produtos perigosos e mudanças, municipal | H149: 1 | I149: FALSE | J149: 0 | K149: FALSE
C150: 4930-2/02 | D150: Transporte rodoviário de carga, exceto produtos perigosos e mudanças, intermunicipal, interestadual e internacional | H150: 1 | I150: FALSE | J150: 0 | K150: FALSE
C151: 5211-7/01 | D151: Armazéns gerais - emissão de warrant | H151: 1 | I151: FALSE | J151: 0 | K151: FALSE
C152: 5211-7/99 | D152: Depósitos de mercadorias para terceiros, exceto armazéns gerais e guarda-móveis | H152: 1 | I152: FALSE | J152: 0 | K152: FALSE
C153: 5510-8/01 | D153: Hotéis | H153: 1 | I153: FALSE | J153: 0 | K153: FALSE
C154: 5510-8/02 | D154: Apart-hoteis | H154: 1 | I154: FALSE | J154: 0 | K154: FALSE
C155: 5510-8/03 | D155: Motéis | H155: 1 | I155: FALSE | J155: 0 | K155: FALSE
C156: 5590-6/01 | D156: Albergues, exceto assistenciais | H156: 1 | I156: FALSE | J156: 0 | K156: FALSE
C157: 5590-6/03 | D157: Pensões (alojamento) | H157: 1 | I157: FALSE | J157: 0 | K157: FALSE
C158: 5590-6/99 | D158: Outros alojamentos não especificados anteriormente | H158: 1 | I158: FALSE | J158: 0 | K158: FALSE
C159: 5611-2/01 | D159: Restaurantes e similares | H159: 1 | I159: FALSE | J159: 0 | K159: FALSE
C160: 5611-2/03 | D160: Lanchonetes, casas de chá, de sucos e similares | H160: 1 | I160: FALSE | J160: 0 | K160: FALSE
C161: 5611-2/04 | D161: Bares e outros estabelecimentos especializados em servir bebidas, sem entretenimento | H161: 1 | I161: FALSE | J161: =IF(I161=TRUE,H161,0) -> 0 | K161: FALSE
C162: 5611-2/05 | D162: Bares e outros estabelecimentos especializados em servir bebidas, com entrenenimento | H162: 1 | I162: FALSE | J162: 0 | K162: FALSE
C163: 5612-1/00 | D163: Serviços ambulantes de alimentação | H163: 1 | I163: FALSE | J163: 0 | K163: FALSE
C164: 5620-1/01 | D164: Fornecimento de alimentos preparados preponderantemente para empresas | H164: 2 | I164: FALSE | J164: 0 | K164: FALSE
C165: 5620-1/02 | D165: Serviços de alimentação para eventos e recepções - bufê | H165: 1 | I165: FALSE | J165: 0 | K165: FALSE
C166: 5620-1/03 | D166: Cantinas - serviços de alimentação privativos | H166: 1 | I166: FALSE | J166: 0 | K166: FALSE
C167: 5620-1/04 | D167: Fornecimento de alimentos preparados preponderantemente para consumo domiciliar | H167: 1 | I167: FALSE | J167: 0 | K167: FALSE
C168: 6203-1/00 | D168: Desenvolvimento e licenciamento de programas de computador não-customizáveis | H168: 2 | I168: FALSE | J168: 0 | K168: FALSE
C169: 7120-1/00 | D169: Testes e análises técnicas | H169: 2 | I169: FALSE | J169: 0 | K169: FALSE
C170: 7500-1/00 | D170: Atividades veterinárias | H170: 2 | I170: FALSE | J170: 0 | K170: FALSE
C171: 7729-2/03 | D171: Aluguel de material médico | H171: 1 | I171: FALSE | J171: 0 | K171: FALSE
C172: 8122-2/00 | D172: Imunização e controle de pragas urbanas | H172: 2 | I172: FALSE | J172: 0 | K172: FALSE
C173: 8129-0/00 | D173: Atividades de limpeza não especificadas anteriormente | H173: 3 | I173: FALSE | J173: 0 | K173: FALSE
C174: 8292-0/00 | D174: Envasamento e empacotamento sob contrato | H174: 2 | I174: FALSE | J174: 0 | K174: FALSE
C175: 8511-2/00 | D175: Educação infantil - creche | H175: 1 | I175: FALSE | J175: 0 | K175: FALSE
C176: 8512-1/00 | D176: Educação infantil - pré-escola | H176: 1 | I176: FALSE | J176: 0 | K176: FALSE
C177: 8513-9/00 | D177: Ensino fundamental | H177: 1 | I177: FALSE | J177: 0 | K177: FALSE
C178: 8591-1/00 | D178: Ensino de esportes | H178: 1 | I178: FALSE | J178: 0 | K178: FALSE
C179: 8599-6/99 | D179: Outras atividades de ensino não especificadas anteriormente | H179: 1 | I179: FALSE | J179: 0 | K179: FALSE
C180: 8610-1/01 | D180: Atividades de atendimento hospitalar, exceto pronto-socorro e unidades para atendimento a urgências | H180: 3 | I180: FALSE | J180: 0 | K180: FALSE
C181: 8610-1/02 | D181: Atividades de atendimento em pronto-socorro e unidades hospitalares para atendimento a urgências | H181: 3 | I181: FALSE | J181: 0 | K181: FALSE
C182: 8621-6/01 | D182: UTI móvel | H182: 2 | I182: FALSE | J182: 0 | K182: FALSE
C183: 8621-6/02 | D183: Serviços móveis de atendimento a urgências, exceto por UTI móvel | H183: 2 | I183: FALSE | J183: 0 | K183: FALSE
C184: 8622-4/00 | D184: Serviços de remoção de pacientes, exceto os serviços móveis de atendimento a urgências | H184: 1 | I184: FALSE | J184: 0 | K184: FALSE
C185: 8630-5/01 | D185: Atividade médica ambulatorial com recursos para realização de procedimentos cirúrgicos | H185: 2 | I185: FALSE | J185: 0 | K185: FALSE
C186: 8630-5/02 | D186: Atividade médica ambulatorial com recursos para realização de exames complementares | H186: 2 | I186: FALSE | J186: 0 | K186: FALSE
C187: 8630-5/03 | D187: Atividade médica ambulatorial restrita a consultas | H187: 1 | I187: FALSE | J187: 0 | K187: FALSE
C188: 8630-5/04 | D188: Atividade odontológica | H188: 2 | I188: FALSE | J188: 0 | K188: FALSE
C189: 8630-5/06 | D189: Serviços de vacinação e imunização humana | H189: 2 | I189: FALSE | J189: 0 | K189: FALSE
C190: 8630-5/07 | D190: Atividades de reprodução humana assistida | H190: 3 | I190: FALSE | J190: 0 | K190: FALSE
C191: 8630-5/99 | D191: Atividades de atenção ambulatorial não especificadas anteriormente | H191: 2 | I191: FALSE | J191: 0 | K191: FALSE
C192: 8640-2/01 | D192: Laboratórios de anatomia patológica e citológica | H192: 2 | I192: FALSE | J192: 0 | K192: FALSE
C193: 8640-2/02 | D193: Laboratórios clínicos | H193: 2 | I193: FALSE | J193: 0 | K193: FALSE
C194: 8640-2/03 | D194: Serviços de diálise e nefrologia | H194: 3 | I194: FALSE | J194: 0 | K194: FALSE
C195: 8640-2/04 | D195: Serviços de tomografia | H195: 3 | I195: FALSE | J195: 0 | K195: FALSE
C196: 8640-2/05 | D196: Serviços de diagnóstico por imagem com uso de radiação ionizante, exceto tomografia | H196: 3 | I196: FALSE | J196: 0 | K196: FALSE
C197: 8640-2/06 | D197: Serviços de ressonância magnética | H197: 3 | I197: FALSE | J197: 0 | K197: FALSE
C198: 8640-2/07 | D198: Serviços de diagnóstico por imagem sem uso de radiação ionizante, exceto ressonância magnética | H198: 2 | I198: FALSE | J198: 0 | K198: FALSE
C199: 8640-2/08 | D199: Serviços de diagnóstico por registro gráfico - ECG, EEG e outros exames análogos | H199: 2 | I199: FALSE | J199: 0 | K199: FALSE
C200: 8640-2/09 | D200: Serviços de diagnóstico por métodos ópticos - endoscopia e outros exames análogos | H200: 2 | I200: FALSE | J200: 0 | K200: FALSE
C201: 8640-2/10 | D201: Serviços de quimioterapia | H201: 3 | I201: FALSE | J201: 0 | K201: FALSE
C202: 8640-2/11 | D202: Serviços de radioterapia | H202: 3 | I202: FALSE | J202: 0 | K202: FALSE
... 47 more rows

Sheet APROVACAO_PROJETO
B1: =ORIENTACAO!B1 -> PL-001 | Versão: 04 | Data: 11/02/2021
B3: SIMULAÇÃO DO VALOR DE TAXA DE APROVAÇÃO DE PROJETO
B6: TAXA: APROVAÇÃO DO PROJETO, CONCESSÃO DE HABITE-SE SANITÁRIO
B7: Lei Estadual nº 7.001/2001 (Tabela V)
B9: Preencha os campos com as informações do estabelecimento:
B11: VRTE EM VIGÊNCIA: | E11: 4.035 | F11: consultar o valor atualizado em:
B13: Faturamento anual da empresa: | F13: (referente aos últimos 12 meses)
B15: Total da área construída (m²): | F15: m² | G15: =CONCATENATE(C25, " ",E25) -> 
B17: Selecione o Grupo do Estabelecimento: (conforme critérios da Portaria Estadual SESA 107-R de 20/12/2018) | E17: Grupo I
E18: Grupo II
E19: Grupo III
B21: CRITÉRIOS CONSIDERADOS:
C22: =IF(E15>0,IF(F40>0,E35,IF(F39>0,E34,E33))," ") ->  | L22: Valor da taxa a ser paga pelo estabelecimento*:
C23: =IF(E13>0,IF(J38>0,K38,IF(J39>0,K39,IF(J40>0,K40,K41)))," ") ->  | L23: =IF(J42>0,I48,I42) -> 2421
C24: Valor da taxa (sem redução)*: | E24: =I42 -> 2421 | L24: *Valores aproximados
C25: =IF(E15>300,"Quantidade excedente (em 100 m²):"," ") ->  | E25: =IF(E15>300,ROUNDUP((E15-300)/100,0)," ") -> 
B32: Grupo I | C32: Grupo II | D32: Grupo III
B33: 600 | C33: 700 | D33: 900 | E33: Estabelecimento com área até 100 m² | H33: Grupo do estabelecimento: | K33: 1 | L33: =K33 -> 1
B34: 700 | C34: 900 | D34: 1100 | E34: Estabelecimento com área de 101 até 300 m²
B35: 20 | C35: 30 | D35: 40 | E35: Estabelecimento com área acima de 300 m²
B36: =ROUND(B35*$E$11,2) -> 80.7 | C36: =ROUND(C35*$E$11,2) -> 121.05 | D36: 161.4
E37: Grupo | F37: 1 | G37: 2 | H37: 3 | J37: REDUÇÃO
E38: Até 100 | F38: =IF($H$60<=100,B33*$E$11,0) -> 2421 | G38: =IF($H$60<=100,C33*$E$11,0) -> 2824.5 | H38: =IF($H$60<=100,D33*$E$11,0) -> 3631.5 | J38: =IF(AND(H58>0,H58<=144000),0.8,0) -> 0 | K38: O estabelecimento tem direito a 80% de redução da taxa
E39: Entre 101 a 300 | F39: =IF($H$60>100,B34*$E$11,0) -> 0 | G39: =IF($H$60>100,C34*$E$11,0) -> 0 | H39: =IF($H$60>100,D34*$E$11,0) -> 0 | J39: =IF(AND(H58>144000,H58<=840000),0.6,0) -> 0 | K39: O estabelecimento tem direito a 60% de redução da taxa
E40: Acima 300 | F40: =IF($H$60>300,B36*$H$61,0) -> 0 | G40: =IF($H$60>300,C36*$H$61,0) -> 0 | H40: =IF($H$60>300,D36*$H$61,0) -> 0 | J40: =IF(AND(H58>840000,H58<=1200000),0.4,0) -> 0 | K40: O estabelecimento tem direito a 40% de redução da taxa
E41: TOTAL SEM REDUÇÃO | F41: =SUM(F38:F40) -> 2421 | G41: =SUM(G38:G40) -> 2824.5 | H41: =SUM(H38:H40) -> 3631.5 | J41: =IF(AND(H58=0,H58>1200000),1,0) -> 0 | K41: O estabelecimento NÃO tem direito a redução da taxa
E42: Taxa do estabelecimento | F42: =IF($L$33=F37,F41,0) -> 2421 | G42: =IF($K$33=G37,G41,0) -> 0 | H42: =IF($K$33=H37,H41,0) -> 0 | I42: =SUM(F42:H42) -> 2421 | J42: =SUM(J38:J41) -> 0 | K42: Fator Multiplicador
E43: Desconto
E44: Até 100 | F44: =F38-F38*$J$42 -> 2421 | G44: =G38-G38*$J$42 -> 2824.5 | H44: 3631.5
E45: Entre 101 a 300 | F45: =F39-F39*$J$42 -> 0 | G45: 0 | H45: 0
E46: Acima 300 | F46: =IF($H$60>300,ROUND(B35*$E$11*(1-$J$42),2)*$H$61,0) -> 0 | G46: =IF($H$60>300,ROUND(C35*$E$11*(1-$J$42),2)*$H$61,0) -> 0 | H46: =IF($H$60>300,ROUND(D35*$E$11*(1-$J$42),2)*$H$61,0) -> 0
E47: TOTAL COM REDUÇÃO | F47: =SUM(F44:F46) -> 2421 | G47: =SUM(G44:G46) -> 2824.5 | H47: 3631.5
E48: Taxa do estabelecimento | F48: =IF($L$33=F37,F47,0) -> 2421 | G48: =IF($L$33=G37,G47,0) -> 0 | H48: 0 | I48: =SUM(F48:H48) -> 2421
C58: Faturamento anual da empresa em VRTE: | H58: =E13/E11 -> 0
C60: Correção da área para multiplo de 100: | H60: =CEILING(E15,100) -> 0
C61: Fator de cálculo | H61: =(H60-300)/100 -> -3
F239: TRUE

Sheet LICENCIAMENTO
B1: =ORIENTACAO!B1 -> PL-001 | Versão: 04 | Data: 11/02/2021
B3: SIMULAÇÃO DO VALOR DE TAXA DE LICENCIAMENTO SANITÁRIO
B6: TAXA: CONCESSÃO DE ALVARÁ, LICENÇA OU AUTORIZAÇÃO
B7: Lei Estadual nº 7.001/2001 (Tabela V)
B9: Preencha os campos com as informações do estabelecimento:
B11: VRTE EM VIGÊNCIA: | E11: 4.035 | F11: consultar o valor atualizado em:
B13: Faturamento anual da empresa: | F13: (referente aos últimos 12 meses)
B15: Total da área construída (m²): | F15: m² | G15: =CONCATENATE(C25, " ",E25) -> 
B17: Selecione o Grupo do Estabelecimento: (conforme critérios da Portaria Estadual SESA 107-R de 20/12/2018) | E17: Grupo I
E18: Grupo II
E19: Grupo III
B21: CRITÉRIOS CONSIDERADOS:
C22: =IF(E15>0,IF(F40>0,E35,IF(F39>0,E34,E33))," ") ->  | L22: Valor da taxa a ser paga pelo estabelecimento*:
C23: =IF(E13>0,IF(J38>0,K38,IF(J39>0,K39,IF(J40>0,K40,K41)))," ") ->  | L23: =IF(J42>0,I48,I42) -> 2017.5
C24: Valor da taxa (sem redução)*: | E24: =I42 -> 2017.5 | L24: *Valores aproximados
C25: =IF(E15>300,"Quantidade excedente (em 100 m²):"," ") ->  | E25: =IF(E15>300,ROUNDUP((E15-300)/100,0)," ") -> 
B32: Grupo I | C32: Grupo II | D32: Grupo III
B33: 500 | C33: 1000 | D33: 1500 | E33: Estabelecimento com área até 100 m² | H33: Grupo do estabelecimento: | K33: 1 | L33: =K33 -> 1
B34: 800 | C34: 1300 | D34: 1800 | E34: Estabelecimento com área de 101 até 300 m²
B35: 50 | C35: 80 | D35: 100 | E35: Estabelecimento com área acima de 300 m²
B36: =ROUND(B35*$E$11,2) -> 201.75 | C36: =ROUND(C35*$E$11,2) -> 322.8 | D36: 403.5
E37: Grupo | F37: 1 | G37: 2 | H37: 3 | J37: REDUÇÃO
E38: Até 100 | F38: =IF($H$60<=100,B33*$E$11,0) -> 2017.5 | G38: =IF($H$60<=100,C33*$E$11,0) -> 4035 | H38: =IF($H$60<=100,D33*$E$11,0) -> 6052.5 | J38: =IF(AND(H58>0,H58<=144000),0.8,0) -> 0 | K38: O estabelecimento tem direito a 80% de redução da taxa
E39: Entre 101 a 300 | F39: =IF($H$60>100,B34*$E$11,0) -> 0 | G39: =IF($H$60>100,C34*$E$11,0) -> 0 | H39: =IF($H$60>100,D34*$E$11,0) -> 0 | J39: =IF(AND(H58>144000,H58<=840000),0.6,0) -> 0 | K39: O estabelecimento tem direito a 60% de redução da taxa
E40: Acima 300 | F40: =IF($H$60>300,B36*$H$61,0) -> 0 | G40: =IF($H$60>300,C36*$H$61,0) -> 0 | H40: =IF($H$60>300,D36*$H$61,0) -> 0 | J40: =IF(AND(H58>840000,H58<=1200000),0.4,0) -> 0 | K40: O estabelecimento tem direito a 40% de redução da taxa
E41: TOTAL SEM REDUÇÃO | F41: =SUM(F38:F40) -> 2017.5 | G41: =SUM(G38:G40) -> 4035 | H41: =SUM(H38:H40) -> 6052.5 | J41: =IF(AND(H58=0,H58>1200000),1,0) -> 0 | K41: O estabelecimento NÃO tem direito a redução da taxa
E42: Taxa do estabelecimento | F42: =IF($L$33=F37,F41,0) -> 2017.5 | G42: =IF($K$33=G37,G41,0) -> 0 | H42: =IF($K$33=H37,H41,0) -> 0 | I42: =SUM(F42:H42) -> 2017.5 | J42: =SUM(J38:J41) -> 0 | K42: Fator Multiplicador
E43: Desconto
E44: Até 100 | F44: =F38-F38*$J$42 -> 2017.5 | G44: =G38-G38*$J$42 -> 4035 | H44: 6052.5
E45: Entre 101 a 300 | F45: =F39-F39*$J$42 -> 0 | G45: 0 | H45: 0
E46: Acima 300 | F46: =IF($H$60>300,ROUND(B35*$E$11*(1-$J$42),2)*$H$61,0) -> 0 | G46: =IF($H$60>300,ROUND(C35*$E$11*(1-$J$42),2)*$H$61,0) -> 0 | H46: =IF($H$60>300,ROUND(D35*$E$11*(1-$J$42),2)*$H$61,0) -> 0
E47: TOTAL COM REDUÇÃO | F47: =SUM(F44:F46) -> 2017.5 | G47: =SUM(G44:G46) -> 4035 | H47: 6052.5
E48: Taxa do estabelecimento | F48: =IF($L$33=F37,F47,0) -> 2017.5 | G48: =IF($L$33=G37,G47,0) -> 0 | H48: 0 | I48: =SUM(F48:H48) -> 2017.5
C58: Faturamento anual da empresa em VRTE: | H58: =E13/E11 -> 0
C60: Correção da área para multiplo de 100: | H60: =CEILING(E15,100) -> 0
C61: Fator de cálculo | H61: =(H60-300)/100 -> -3
F239: TRUE

Sheet TMARS
B1: =ORIENTACAO!B1 -> PL-001 | Versão: 04 | Data: 11/02/2021
B3: SIMULAÇÃO DO VALOR DE TAXA DE MONITORAMENTO
B6: TAXA: TAXA DE MONITORAMENTO ANUAL DO RISCO SANITÁRIO (TMARS)
B7: Lei Estadual nº 7.001/2001 (Tabela V)
B9: Preencha os campos com as informações do estabelecimento:
B11: VRTE EM VIGÊNCIA: | E11: 4.035 | F11: consultar o valor atualizado em:
B13: Faturamento anual da empresa: | F13: (referente aos últimos 12 meses)
B15: Total da área construída (m²): | F15: m² | G15: =CONCATENATE(C25, " ",E25) -> 
B17: Selecione o Grupo do Estabelecimento: (conforme critérios da Portaria Estadual SESA 107-R de 20/12/2018) | E17: Grupo I
E18: Grupo II
E19: Grupo III
B21: CRITÉRIOS CONSIDERADOS:
C22: =IF(E15>0,IF(F40>0,E35,IF(F39>0,E34,E33))," ") ->  | L22: Valor da taxa a ser paga pelo estabelecimento*:
C23: =IF(E13>0,IF(J38>0,K38,IF(J39>0,K39,IF(J40>0,K40,K41)))," ") ->  | L23: =IF(J42>0,I48,I42) -> 2017.5
C24: Valor da taxa (sem redução)*: | E24: =I42 -> 2017.5 | L24: *Valores aproximados
C25: =IF(E15>300,"Quantidade excedente (em 100 m²):"," ") ->  | E25: =IF(E15>300,ROUNDUP((E15-300)/100,0)," ") -> 
B32: Grupo I | C32: Grupo II | D32: Grupo III
B33: 500 | C33: 1000 | D33: 1500 | E33: Estabelecimento com área até 100 m² | H33: Grupo do estabelecimento: | K33: 1 | L33: =K33 -> 1
B34: 800 | C34: 1300 | D34: 1800 | E34: Estabelecimento com área de 101 até 300 m²
B35: 50 | C35: 80 | D35: 100 | E35: Estabelecimento com área acima de 300 m²
B36: =ROUND(B35*$E$11,2) -> 201.75 | C36: =ROUND(C35*$E$11,2) -> 322.8 | D36: 403.5
E37: Grupo | F37: 1 | G37: 2 | H37: 3 | J37: REDUÇÃO
E38: Até 100 | F38: =IF($H$60<=100,B33*$E$11,0) -> 2017.5 | G38: =IF($H$60<=100,C33*$E$11,0) -> 4035 | H38: =IF($H$60<=100,D33*$E$11,0) -> 6052.5 | J38: =IF(AND(H58>0,H58<=144000),0.8,0) -> 0 | K38: O estabelecimento tem direito a 80% de redução da taxa
E39: Entre 101 a 300 | F39: =IF($H$60>100,B34*$E$11,0) -> 0 | G39: =IF($H$60>100,C34*$E$11,0) -> 0 | H39: =IF($H$60>100,D34*$E$11,0) -> 0 | J39: =IF(AND(H58>144000,H58<=840000),0.6,0) -> 0 | K39: O estabelecimento tem direito a 60% de redução da taxa
E40: Acima 300 | F40: =IF($H$60>300,B36*$H$61,0) -> 0 | G40: =IF($H$60>300,C36*$H$61,0) -> 0 | H40: =IF($H$60>300,D36*$H$61,0) -> 0 | J40: =IF(AND(H58>840000,H58<=1200000),0.4,0) -> 0 | K40: O estabelecimento tem direito a 40% de redução da taxa
E41: TOTAL SEM REDUÇÃO | F41: =SUM(F38:F40) -> 2017.5 | G41: =SUM(G38:G40) -> 4035 | H41: =SUM(H38:H40) -> 6052.5 | J41: =IF(AND(H58=0,H58>1200000),1,0) -> 0 | K41: O estabelecimento NÃO tem direito a redução da taxa
E42: Taxa do estabelecimento | F42: =IF($L$33=F37,F41,0) -> 2017.5 | G42: =IF($K$33=G37,G41,0) -> 0 | H42: =IF($K$33=H37,H41,0) -> 0 | I42: =SUM(F42:H42) -> 2017.5 | J42: =SUM(J38:J41) -> 0 | K42: Fator Multiplicador
E43: Desconto
E44: Até 100 | F44: =F38-F38*$J$42 -> 2017.5 | G44: =G38-G38*$J$42 -> 4035 | H44: 6052.5
E45: Entre 101 a 300 | F45: =F39-F39*$J$42 -> 0 | G45: 0 | H45: 0
E46: Acima 300 | F46: =IF($H$60>300,ROUND(B35*$E$11*(1-$J$42),2)*$H$61,0) -> 0 | G46: =IF($H$60>300,ROUND(C35*$E$11*(1-$J$42),2)*$H$61,0) -> 0 | H46: =IF($H$60>300,ROUND(D35*$E$11*(1-$J$42),2)*$H$61,0) -> 0
E47: TOTAL COM REDUÇÃO | F47: =SUM(F44:F46) -> 2017.5 | G47: =SUM(G44:G46) -> 4035 | H47: 6052.5
E48: Taxa do estabelecimento | F48: =IF($L$33=F37,F47,0) -> 2017.5 | G48: =IF($L$33=G37,G47,0) -> 0 | H48: 0 | I48: =SUM(F48:H48) -> 2017.5
C58: Faturamento anual da empresa em VRTE: | H58: =E13/E11 -> 0
C60: Correção da área para multiplo de 100: | H60: =CEILING(E15,100) -> 0
C61: Fator de cálculo | H61: =(H60-300)/100 -> -3
F239: TRUE
